{"text_format":"1","workbook":"xlsx","n_sheets":1,"sheets":["Bestelling"],"not_rendered":{"charts":0,"images":1,"macros":1,"external_links":0,"defined_names":44,"comments":0,"pivot_tables":0},"unopened":[],"bounds":{"document_bytes":16777216,"sheet_cells":100000,"rows_first":2000,"rows_last":500,"rows_between":2000,"halvings":0,"cell_chars":16384,"cell_head_chars":4096},"cells_cut":0,"cells_raw":0,"read":"whole","date_system":"1900"}

{"sheet":"Bestelling","index":0,"n_rows":317,"n_cols":38,"rows_kept":317,"cut":false,"hidden":false,"merged":[[302,26,302,29],[303,5,305,14],[306,1,306,18],[307,1,307,18],[299,5,299,8],[299,15,299,18],[299,26,299,29],[300,26,300,29],[301,5,301,6],[301,26,301,29],[295,26,295,29],[297,5,297,8],[297,15,297,18],[297,26,297,29],[298,5,298,8],[298,15,298,18],[298,26,298,29],[8,2,8,4],[296,5,296,8],[296,15,296,18],[296,26,296,29],[0,1,0,18],[7,6,7,14],[7,15,7,18],[288,10,288,14],[288,17,288,18],[289,8,289,10],[289,14,289,16],[289,17,289,18],[291,5,291,8],[292,15,292,18],[293,15,293,18],[295,5,295,8]]}
[null,"Bestelformulier LWEO 2024"]
[]
[]
[]
[]
[]
[null,null,null,null,null,null,null,null,null,null,null,null,null,null,null,null,null,null,null,null,8]
[null,"Bestelling",null,null,null,null,"Lesbrieven & Digitaal",null,null,null,null,null,null,null,null,"Uitwerkingen",null,null,null,null,11,10,7]
[null,"Titel","Geschikt voor     BE-examenjaar",null,null,"Druk","ISBN","Advies-prijs","Aantal Leerling",null,"Aantal Docent1",null,null,null,"Totaal per titel","ISBN","Advies-prijs","Aantal","Totaal per titel"]
[null,null,2025,2026,2027]
[]
[null,"Economie",null,null,null,null,null,null,{"$f":"IF(ROWS(I13:I154)-COUNTBLANK(I13:I154)=0,\"\",\"v\")","v":""},null,{"$f":"IF(ROWS(K13:K154)-COUNTBLANK(K13:K154)=0,\"\",\"v\")","v":""},null,null,null,null,null,null,{"$f":"IF(ROWS(R13:R154)-COUNTBLANK(R13:R154)=0,\"\",\"v\")","v":""},null,null,{"$f":"IF(COUNTBLANK(I12:S12)=($U$8),\"\",\"v\")","v":""}]
[]
[null,"Economie onderbouw",null,null,null,null,null,null,{"$f":"IF(ROWS(I15:I35)-COUNTBLANK(I15:I35)=0,\"\",\"v\")","v":""},null,{"$f":"IF(ROWS(K15:K35)-COUNTBLANK(K15:K35)=0,\"\",\"v\")","v":""},null,null,null,null,null,null,{"$f":"IF(ROWS(R15:R35)-COUNTBLANK(R15:R35)=0,\"\",\"v\")","v":""},null,null,{"$f":"IF(COUNTBLANK(I14:S14)=($U$8),\"\",\"v\")","v":""}]
[null,"Onderbouw tweede klas",null,null,null,null,null,null,{"$f":"IF(ROWS(I16:I20)-COUNTBLANK(I16:I20)=0,\"\",\"v\")","v":""},null,{"$f":"IF(ROWS(K16:K20)-COUNTBLANK(K16:K20)=0,\"\",\"v\")","v":""},null,null,null,null,null,null,{"$f":"IF(ROWS(R16:R20)-COUNTBLANK(R16:R20)=0,\"\",\"v\")","v":""},null,null,""]
[null,"Jonge Consumenten",null,null,null,7,9789461103253,5.85,null,null,null,null,null,null,{"$f":"H16*I16+K16*H16*0.2","v":0},9789461103284,1.35,null,{"$f":"Q16*R16","v":0},null,{"$f":"IF(COUNTBLANK(I16:S16)=($W$8),\"\",\"v\")","v":""}]
[null,"Kiezen en Werken",null,null,null,6,9789461103260,6.15,null,null,null,null,null,null,{"$f":"H17*I17+K17*H17*0.2","v":0},9789461103291,1.25,null,{"$f":"Q17*R17","v":0},null,{"$f":"IF(COUNTBLANK(I17:S17)=($W$8),\"\",\"v\")","v":""}]
[null,"Samen Leven",null,null,null,6,9789461103277,4.5,null,null,null,null,null,null,0,9789461103307,1,null,0,null,""]
[]
[null,"Docentenhandleiding 2e klas Fundament",null,null,null,4,9789461103314,5.5,null,null,null,null,null,null,{"$f":"H20*K20","v":0},null,null,null,null,null,{"$f":"IF(COUNTBLANK(K20:R20)=($W$8),\"\",\"v\")","v":""}]
[]
[null,"Onderbouw derde klas",null,null,null,null,null,null,{"$f":"IF(ROWS(I23:I29)-COUNTBLANK(I23:I29)=0,\"\",\"v\")","v":""},null,{"$f":"IF(ROWS(K23:K29)-COUNTBLANK(K23:K29)=0,\"\",\"v\")","v":""},null,null,null,null,null,null,{"$f":"IF(ROWS(R23:R29)-COUNTBLANK(R23:R29)=0,\"\",\"v\")","v":""},null,null,""]
[null,"Kopen en Werken",null,null,null,3,9789461102836,12.2,null,null,null,null,null,null,{"$f":"H23*I23+K23*H23*0.2","v":0},9789461102850,1.9,null,{"$f":"Q23*R23","v":0},null,{"$f":"IF(COUNTBLANK(I23:S23)=($W$8),\"\",\"v\")","v":""}]
[null,"De Samenleving",null,null,null,6,9789461102843,4.25,null,null,null,null,null,null,0,9789461102867,0.9,null,0,null,""]
[null,"Buying and Working",null,null,null,3,9789461102881,16.149999999999999,null,null,null,null,null,null,0,9789461102904,2.4,null,0,null,""]
[null,"Society",null,null,null,6,9789461102898,6.75,null,null,null,null,null,null,0,9789461102911,1.1000000000000001,null,0,null,""]
[]
[null,"Docentenhandleiding 3e klas Fundament",null,null,null,8,9789461102874,5.0999999999999996,null,null,null,null,null,null,{"$f":"H28*K28","v":0},null,null,null,null,null,{"$f":"IF(COUNTBLANK(K28:R28)=($W$8),\"\",\"v\")","v":""}]
[null,"Docentenhandleiding Fundament Engelstalig",null,null,null,6,9789461102928,5.4,null,null,null,null,null,null,{"$f":"H29*K29","v":0},null,null,null,null,null,{"$f":"IF(COUNTBLANK(K29:R29)=($W$8),\"\",\"v\")","v":""}]
[]
[null,"Onderbouw digitaal",null,null,null,null,null,null,{"$f":"IF(ROWS(I32:I35)-COUNTBLANK(I32:I35)=0,\"\",\"v\")","v":""},null,null,null,null,null,null,null,null,null,null,null,""]
[null,"LWEOplus onderbouw Havo/Vwo 4)",null,null,null,null,9789071154898,2.35,null,null,null,null,null,null,{"$f":"H32*I32","v":0},null,null,null,null,null,{"$f":"IF(COUNTBLANK(I32:S32)=($V$8),\"\",\"v\")","v":""}]
[null,"LWEOplus totaal onderbouw Havo/Vwo 4)",null,null,null,null,9789461102812,8.5,null,null,null,null,null,null,{"$f":"H33*I33","v":0},null,null,null,null,null,""]
[null,"Methode Adapt 3e klas 4)",null,null,null,"(2)",9789461102966,15,null,null,null,null,null,null,{"$f":"H34*I34","v":0},null,null,null,null,null,""]
[null,"Methode Adapt 3e klas plus Kopen en Werken4)",null,null,null,"(2)",9789461102973,18.2,null,null,null,null,null,null,{"$f":"H35*I35","v":0},null,null,null,null,null,""]
[]
[null,"Economie bovenbouw",null,null,null,null,null,null,{"$f":"IF(ROWS(I38:I89)-COUNTBLANK(I38:I89)=0,\"\",\"v\")","v":""},null,{"$f":"IF(ROWS(K38:K89)-COUNTBLANK(K38:K89)=0,\"\",\"v\")","v":""},null,null,null,null,null,null,{"$f":"IF(ROWS(R38:R89)-COUNTBLANK(R38:R89)=0,\"\",\"v\")","v":""},null,null,""]
[null,"Economie Havo",null,null,null,null,null,null,{"$f":"IF(ROWS(I39:I60)-COUNTBLANK(I39:I60)=0,\"\",\"v\")","v":""},null,{"$f":"IF(ROWS(K39:K60)-COUNTBLANK(K39:K60)=0,\"\",\"v\")","v":""},null,null,null,null,null,null,{"$f":"IF(ROWS(R39:R60)-COUNTBLANK(R39:R60)=0,\"\",\"v\")","v":""},null,null,""]
[null,"Crisis",null,null,null,3,9789461103444,3.5,null,null,null,null,null,null,{"$f":"H39*I39+K39*H39*0.2","v":0},9789461103451,0.7,null,{"$f":"Q39*R39","v":0},null,{"$f":"IF(COUNTBLANK(I39:S39)=($W$8),\"\",\"v\")","v":""}]
[null,"Vragers en Aanbieders",null,null,null,1,9789461103079,7.9,null,null,null,null,null,null,0,9789461103109,1.7,null,0,null,""]
[null,"Jong en Oud",null,null,null,5,9789461103086,7.5,null,null,null,null,null,null,0,9789461103116,1.4,null,0,null,""]
[null,"Markt en Overheid",null,null,null,5,9789461103093,8.1,null,null,null,null,null,null,0,9789461103123,1.7,null,0,null,""]
[null,"Europa",null,null,null,4,9789461103321,6,null,null,null,null,null,null,0,9789461103352,1.1000000000000001,null,0,null,""]
[null,"Verdienen en Uitgeven",null,null,null,5,9789461103338,6.75,null,null,null,null,null,null,0,9789461103369,1.1000000000000001,null,0,null,""]
[null,"Extra Havo",null,null,null,null,null,null,{"$f":"IF(ROWS(I46)-COUNTBLANK(I46)=0,\"\",\"v\")","v":""},null,{"$f":"IF(ROWS(K46)-COUNTBLANK(K46)=0,\"\",\"v\")","v":""},null,null,null,null,null,null,{"$f":"IF(ROWS(R46)-COUNTBLANK(R46)=0,\"\",\"v\")","v":""},null,null,""]
[null,"Rekonomie Havo",null,null,null,3,9789461103239,3,null,null,null,null,null,null,{"$f":"H46*I46+K46*H46*0.2","v":0},9789461103246,0.9,null,{"$f":"Q46*R46","v":0},null,{"$f":"IF(COUNTBLANK(I46:S46)=($W$8),\"\",\"v\")","v":""}]
[null,"Keuzeonderwerpen Havo",null,null,null,null,null,null,{"$f":"IF(ROWS(I48:I53)-COUNTBLANK(I48:I53)=0,\"\",\"v\")","v":""},null,{"$f":"IF(ROWS(K48:K53)-COUNTBLANK(K48:K53)=0,\"\",\"v\")","v":""},null,null,null,null,null,null,{"$f":"IF(ROWS(R48:R53)-COUNTBLANK(R48:R53)=0,\"\",\"v\")","v":""},null,null,""]
[null,"Geldzaken",null,null,null,2,9789461102652,3,null,null,null,null,null,null,0,9789461102669,0.8,null,0,null,{"$f":"IF(COUNTBLANK(I48:S48)=($W$8),\"\",\"v\")","v":""}]
[null,"Conjunctuur",null,null,null,2,9789461103468,3.25,null,null,null,null,null,null,0,9789461103482,0.9,null,0,null,""]
[null,"Werk en Werkloosheid",null,null,null,2,9789461103345,6,null,null,null,null,null,null,0,9789461103376,0.9,null,0,null,""]
[null,"Keuzegedrag",null,null,null,1,9789461101723,2.8,null,null,null,null,null,null,{"$f":"H51*I51+K51*H51*0.2","v":0},9789461101730,0.6,null,{"$f":"Q51*R51","v":0},null,{"$f":"IF(COUNTBLANK(I51:S51)=($W$8),\"\",\"v\")","v":""}]
[null,"Grenzen aan de groei?",null,null,null,1,9789461103475,3.9,null,null,null,null,null,null,0,9789461103499,1.2,null,0,null,""]
[null,"Ongelijkheid (Havo/Vwo)",null,null,null,2,9789461103543,5.05,null,null,null,null,null,null,0,9789461103581,1.2,null,0,null,""]
[null,"Docentenhandleiding Havo",null,null,null,null,null,null,null,null,{"$f":"IF(ROWS(K55)-COUNTBLANK(K55)=0,\"\",\"v\")","v":""},null,null,null,null,null,null,null,null,null,""]
[null,"Docentenhandleiding Havo",null,null,null,12,9789461103505,11.5,null,null,null,null,null,null,{"$f":"H55*K55","v":0},null,null,null,null,null,{"$f":"IF(COUNTBLANK(K55:R55)=($W$8),\"\",\"v\")","v":""}]
[null,"Digitaal Havo",null,null,null,null,null,null,{"$f":"IF(ROWS(I57:I60)-COUNTBLANK(I57:I60)=0,\"\",\"v\")","v":""},null,null,null,null,null,null,null,null,null,null,null,""]
[null,"LWEOplus bovenbouw Havo 4)",null,null,null,null,9789071154874,4.4000000000000004,null,null,null,null,null,null,{"$f":"H57*I57","v":0},null,null,null,null,null,{"$f":"IF(COUNTBLANK(I57:S57)=($V$8),\"\",\"v\")","v":""}]
[null,"LWEOplus Totaal bovenbouw Havo 4)",null,null,null,null,9789461102690,15.8,null,null,null,null,null,null,0,null,null,null,null,null,""]
[null,"Oefen Adapt Havo 4)",null,null,null,null,9789461102614,4.5999999999999996,null,null,null,null,null,null,0,null,null,null,null,null,""]
[null,"Methode Adapt Havo 4)",null,null,null,null,9789461102980,24.75,null,null,null,null,null,null,0,null,null,null,null,null,""]
[]
[null,"Economie Vwo",null,null,null,null,null,null,{"$f":"IF(ROWS(I63:I89)-COUNTBLANK(I63:I89)=0,\"\",\"v\")","v":""},null,{"$f":"IF(ROWS(K63:K89)-COUNTBLANK(K63:K89)=0,\"\",\"v\")","v":""},null,null,null,null,null,null,{"$f":"IF(ROWS(R63:R89)-COUNTBLANK(R63:R89)=0,\"\",\"v\")","v":""},null,null,""]
[null,"Levensloop",null,null,null,5,9789461103000,11.55,null,null,null,null,null,null,{"$f":"H63*I63+K63*H63*0.2","v":0},9789461103017,1.85,null,{"$f":"Q63*R63","v":0},null,{"$f":"IF(COUNTBLANK(I63:S63)=($W$8),\"\",\"v\")","v":""}]
[null,"Vraag en Aanbod",null,null,null,4,9789461103512,8.75,null,null,null,null,null,null,0,9789461103550,1.7,null,0,null,""]
[null,"Marktgedrag",null,null,null,2,9789461103529,7.15,null,null,null,null,null,null,0,9789461103567,1.65,null,0,null,""]
[null,"Marktresultaat en Overheidsinvloed",null,null,null,1,9789461103147,8.15,null,null,null,null,null,null,0,9789461103178,1.95,null,0,null,""]
[null,"Welvaart",null,null,null,1,9789461103154,8.0500000000000007,null,null,null,null,null,null,{"$f":"H67*I67+K67*H67*0.2","v":0},9789461103185,1.7,null,{"$f":"Q67*R67","v":0},null,{"$f":"IF(COUNTBLANK(I67:S67)=($W$8),\"\",\"v\")","v":""}]
[null,"Economisch Beleid",null,null,null,1,9789461103161,10.15,null,null,null,null,null,null,{"$f":"H68*I68+K68*H68*0.2","v":0},9789461103192,1.65,null,{"$f":"Q68*R68","v":0},null,{"$f":"IF(COUNTBLANK(I68:S68)=($W$8),\"\",\"v\")","v":""}]
[null,"Wereldeconomie",null,null,null,3,9789461103390,9.0500000000000007,null,null,null,null,null,null,0,9789461103413,1.65,null,0,null,""]
[null,"Extra Vwo",null,null,null,null,null,null,{"$f":"IF(ROWS(I71)-COUNTBLANK(I71)=0,\"\",\"v\")","v":""},null,{"$f":"IF(ROWS(K71)-COUNTBLANK(K71)=0,\"\",\"v\")","v":""},null,null,null,null,null,null,{"$f":"IF(ROWS(R71)-COUNTBLANK(R71)=0,\"\",\"v\")","v":""},null,null,""]
[null,"Rekonomie Vwo",null,null,null,3,9789461103406,5.05,null,null,null,null,null,null,{"$f":"H71*I71+K71*H71*0.2","v":0},9789461103420,1.25,null,{"$f":"Q71*R71","v":0},null,{"$f":"IF(COUNTBLANK(I71:S71)=($W$8),\"\",\"v\")","v":""}]
[null,"Keuzeonderwerpen Vwo",null,null,null,null,null,null,{"$f":"IF(ROWS(I73:I77)-COUNTBLANK(I73:I77)=0,\"\",\"v\")","v":""},null,{"$f":"IF(ROWS(K73:K77)-COUNTBLANK(K73:K77)=0,\"\",\"v\")","v":""},null,null,null,null,null,null,{"$f":"IF(ROWS(R73:R77)-COUNTBLANK(R73:R77)=0,\"\",\"v\")","v":""},null,null,""]
[null,"Monetaire Zaken",null,null,null,2,9789461102638,5.0999999999999996,null,null,null,null,null,null,0,9789461102645,1.25,null,0,null,{"$f":"IF(COUNTBLANK(I73:S73)=($W$8),\"\",\"v\")","v":""}]
[null,"Economische Modellen 5)",null,null,null,2,9789461103604,6.5,null,null,null,null,null,null,0,9789461103611,1.4,null,0,null,""]
[null,"Arbeid",null,null,null,2,9789461103536,6.1,null,null,null,null,null,null,0,9789461103574,1.2,null,0,null,""]
[null,"Gedragseconomie",null,null,null,2,9789461103215,5.0999999999999996,null,null,null,null,null,null,0,9789461103222,1.35,null,0,null,""]
[null,"Ongelijkheid (Havo/Vwo)",null,null,null,2,9789461103543,5.05,null,null,null,null,null,null,0,9789461103581,1.2,null,0,null,""]
[null,"Docentenhandleiding Vwo",null,null,null,null,null,null,{"$f":"IF(ROWS(I79)-COUNTBLANK(I79)=0,\"\",\"v\")","v":""},null,{"$f":"IF(ROWS(K79)-COUNTBLANK(K79)=0,\"\",\"v\")","v":""},null,null,null,null,null,null,null,null,null,""]
[null,"Docentenhandleiding Vwo 5)",null,null,null,13,9789461103628,11.5,null,null,null,null,null,null,{"$f":"H79*K79","v":0},null,null,null,null,null,{"$f":"IF(COUNTBLANK(K79:R79)=($W$8),\"\",\"v\")","v":""}]
[null,"Digitaal Vwo",null,null,null,null,null,null,{"$f":"IF(ROWS(I81:I84)-COUNTBLANK(I81:I84)=0,\"\",\"v\")","v":""},null,null,null,null,null,null,null,null,null,null,null,{"$f":"IF(COUNTBLANK(I80:S80)=($U$8),\"\",\"v\")","v":""}]
[null,"LWEOplus bovenbouw Vwo 4)",null,null,null,null,9789071154881,4.4000000000000004,null,null,null,null,null,null,{"$f":"H81*I81","v":0},null,null,null,null,null,{"$f":"IF(COUNTBLANK(I81:S81)=($V$8),\"\",\"v\")","v":""}]
[null,"LWEOplus Totaal bovenbouw Vwo 4)",null,null,null,null,9789461102706,16.600000000000001,null,null,null,null,null,null,0,null,null,null,null,null,""]
[null,"Oefen Adapt Vwo 4)",null,null,null,null,9789461102621,4.5999999999999996,null,null,null,null,null,null,0,null,null,null,null,null,""]
[null,"Methode Adapt Vwo 4)",null,null,null,null,9789461102997,25.35,null,null,null,null,null,null,0,null,null,null,null,null,""]
[]
[null,"Voorgaande drukken",null,null,null,null,null,null,{"$f":"IF(ROWS(I87:I89)-COUNTBLANK(I87:I89)=0,\"\",\"v\")","v":""},null,{"$f":"IF(ROWS(K87:K89)-COUNTBLANK(K87:K89)=0,\"\",\"v\")","v":""},null,null,null,null,null,null,{"$f":"IF(ROWS(R87:R89)-COUNTBLANK(R87:R89)=0,\"\",\"v\")","v":""},null,null,{"$f":"IF(COUNTBLANK(I86:S86)=($U$8),\"\",\"v\")","v":""}]
[null,"Vwo (beschikbaar tot mei 2024)",null,null,null,null,null,null,{"$f":"IF(ROWS(I88:I89)-COUNTBLANK(I88:I89)=0,\"\",\"v\")","v":""},null,{"$f":"IF(ROWS(K88:K89)-COUNTBLANK(K88:K89)=0,\"\",\"v\")","v":""},null,null,null,null,null,null,{"$f":"IF(ROWS(R88:R89)-COUNTBLANK(R88:R89)=0,\"\",\"v\")","v":""},null,null,{"$f":"IF(COUNTBLANK(I87:S87)=($U$8),\"\",\"v\")","v":""}]
[null,"Economische Modellen",null,null,null,1,9789461100320,7.65,null,null,null,null,null,null,{"$f":"H88*I88+K88*H88*0.2","v":0},9789461100337,1.65,null,{"$f":"Q88*R88","v":0},null,{"$f":"IF(COUNTBLANK(I88:S88)=($W$8),\"\",\"v\")","v":""}]
[null,"Docentenhandleiding Vwo",null,null,null,12,9789461103598,11.5,null,null,null,null,null,null,{"$f":"H89*K89","v":0},null,null,null,null,null,{"$f":"IF(COUNTBLANK(K89:R89)=($W$8),\"\",\"v\")","v":""}]
[]
[null,"Voor de docent",null,null,null,null,null,null,null,null,{"$f":"IF(ROWS(K92:K102)-COUNTBLANK(K92:K102)=0,\"\",\"v\")","v":""},null,null,null,null,null,null,null,null,null,""]
[null,"Digitaal",null,null,null,null,null,null,null,null,{"$f":"IF(ROWS(K93:K94)-COUNTBLANK(K93:K94)=0,\"\",\"v\")","v":""},null,null,null,null,null,null,{"$f":"IF(ROWS(R105:R126)-COUNTBLANK(R105:R126)=0,\"\",\"v\")","v":""},null,null,""]
[null,"Docentenwebsite 3)",null,null,null,null,null,105,null,null,null,null,null,null,{"$f":"H93*K93","v":0},null,null,null,null,null,{"$f":"IF(COUNTBLANK(K93:R93)=($W$8),\"\",\"v\")","v":""}]
[null,"Docentenpresentatie 3)",null,null,null,null,null,20,null,null,null,null,null,null,{"$f":"H94*K94","v":0},null,null,null,null,null,{"$f":"IF(COUNTBLANK(K94:R94)=($W$8),\"\",\"v\")","v":""}]
[null,"De Vrolijke Economen",null,null,null,null,null,null,null,null,{"$f":"IF(ROWS(K96:K102)-COUNTBLANK(K96:K102)=0,\"\",\"v\")","v":""},null,null,null,null,null,null,null,null,null,""]
[null,"Concept: Markt",null,null,null,1,9789461100504,39.799999999999997,null,null,null,null,null,null,{"$f":"H96*K96","v":0},null,null,null,null,null,{"$f":"IF(COUNTBLANK(K96:R96)=($W$8),\"\",\"v\")","v":""}]
[null,"Concept: Ruilen over de tijd",null,null,null,1,9789461100719,39.799999999999997,null,null,null,null,null,null,{"$f":"H97*K97","v":0},null,null,null,null,null,{"$f":"IF(COUNTBLANK(K97:R97)=($W$8),\"\",\"v\")","v":""}]
[null,"Concepten: Schaarste en Ruil",null,null,null,1,9789461102065,39.799999999999997,null,null,null,null,null,null,0,null,null,null,null,null,""]
[null,"Management en Organisatie",null,null,null,1,9789461102058,39.799999999999997,null,null,null,null,null,null,0,null,null,null,null,null,""]
[null,"Vaardigheid: Experimenten",null,null,null,1,9789461102478,39.799999999999997,null,null,null,null,null,null,0,null,null,null,null,null,""]
[null,"Concept: Welvaart en Groei",null,null,null,1,9789461102829,39.799999999999997,null,null,null,null,null,null,0,null,null,null,null,null,""]
[null,"Bedrijfseconomie",null,null,null,1,9789461103062,39.799999999999997,null,null,null,null,null,null,0,null,null,null,null,null,""]
[]
[]
[]
[]
[]
[]
[]
[]
[]
[]
[]
[]
[]
[]
[]
[]
[]
[]
[]
[]
[]
[]
[]
[]
[]
[]
[]
[]
[]
[]
[]
[]
[]
[]
[]
[]
[]
[]
[]
[]
[]
[]
[]
[]
[]
[]
[]
[]
[]
[]
[]
[]
[null,"Bedrijfseconomie",null,null,null,null,null,null,{"$f":"IF(ROWS(I156:I229)-COUNTBLANK(I156:I229)=0,\"\",\"v\")","v":""},null,{"$f":"IF(ROWS(K156:K229)-COUNTBLANK(K156:K229)=0,\"\",\"v\")","v":""},null,null,null,null,null,null,{"$f":"IF(ROWS(R156:R229)-COUNTBLANK(R156:R229)=0,\"\",\"v\")","v":""},null,null,{"$f":"IF(COUNTBLANK(I155:S155)=($U$8),\"\",\"v\")","v":""}]
[]
[null,"Bedrijfseconomie Havo",null,null,null,null,null,null,{"$f":"IF(ROWS(I158:I176)-COUNTBLANK(I158:I176)=0,\"\",\"v\")","v":""},null,{"$f":"IF(ROWS(K158:K176)-COUNTBLANK(K158:K176)=0,\"\",\"v\")","v":""},null,null,null,null,null,null,{"$f":"IF(ROWS(R158:R176)-COUNTBLANK(R158:R176)=0,\"\",\"v\")","v":""},null,null,""]
[null,"Financiële Zelfredzaamheid Havo","x","x",null,4,9789460200991,8.85,null,null,null,null,null,null,{"$f":"H158*I158+0.2*H158*K158","v":0},9789460201264,1.25,null,{"$f":"Q158*R158","v":0},null,{"$f":"IF(COUNTBLANK(I158:S158)=($W$8),\"\",\"v\")","v":""}]
[null,"Bedrijf Starten Havo","x","x",null,3,9789460200687,10.85,null,null,null,null,null,null,{"$f":"H159*I159+0.2*H159*K159","v":0},9789460200915,1.95,null,0,null,""]
[null,"Onderneem-het-zelf Havo/Vwo","k","k",null,2,9789460200236,4.5999999999999996,null,null,null,null,null,null,0,9789460200571,0.85,null,0,null,""]
[null,"Personeelsbeleid en Interne Organisatie Havo","x","x",null,3,9789460201004,7.3,null,null,null,null,null,null,0,9789460201271,1.1000000000000001,null,0,null,""]
[null,"Marktverovering Havo","x","x",null,3,9789460201233,5.8,null,null,null,null,null,null,0,9789460201288,1.1000000000000001,null,0,null,""]
[null,"Investeren Havo","SE","SE",null,2,9789460200243,2.4,null,null,null,null,null,null,0,9789460200519,0.85,null,0,null,""]
[null,"Financiering en Verslaggeving Havo 5)","x","x",null,4,9789460201837,10.25,null,null,null,null,null,null,0,9789460201844,1.1499999999999999,null,0,null,""]
[null,"Het Resultaat Havo 5)","x","x",null,4,9789460201851,5.7,null,null,null,null,null,null,0,9789460201868,1.2,null,0,null,""]
[null,"Keuzelesbrieven Havo",null,null,null,null,null,null,{"$f":"IF(ROWS(I167:I168)-COUNTBLANK(I167:I168)=0,\"\",\"v\")","v":""},null,{"$f":"IF(ROWS(K167:K168)-COUNTBLANK(K167:K168)=0,\"\",\"v\")","v":""},null,null,null,null,null,null,{"$f":"IF(ROWS(R167:R168)-COUNTBLANK(R167:R168)=0,\"\",\"v\")","v":""},null,null,{"$f":"IF(COUNTBLANK(I166:S166)=($U$8),\"\",\"v\")","v":""}]
[null,"Circulair Ondernemen Havo","k","k",null,2,9789460200267,3.25,null,null,null,null,null,null,{"$f":"H167*I167+0.2*H167*K167","v":0},9789460200533,0.85,null,0,null,{"$f":"IF(COUNTBLANK(I167:S167)=($W$8),\"\",\"v\")","v":""}]
[null,"Bedrijfseconomie@home Havo","k","k",null,2,9789460200274,2.4,null,null,null,null,null,null,0,9789460200564,0.85,null,0,null,""]
[]
[null,"Docentenhandleiding Havo",null,null,null,null,null,null,null,null,{"$f":"IF(ROWS(K171)-COUNTBLANK(K171)=0,\"\",\"v\")","v":""},null,null,null,null,null,null,null,null,null,""]
[null,"Docentenhandleiding BE Havo 5)",null,null,null,6,9789460201875,16.5,null,null,null,null,null,null,{"$f":"H171*K171","v":0},null,null,null,null,null,{"$f":"IF(COUNTBLANK(K171:R171)=($W$8),\"\",\"v\")","v":""}]
[null,"Bedrijfseconomie Digitaal Havo",null,null,null,null,null,null,{"$f":"IF(ROWS(I173:I176)-COUNTBLANK(I173:I176)=0,\"\",\"v\")","v":""},null,null,null,null,null,null,null,null,null,null,null,""]
[null,"Bedrijfseconomieplus Havo 4)",null,null,null,null,9789460204814,4,null,null,null,null,null,null,{"$f":"H173*I173","v":0},null,null,null,null,null,{"$f":"IF(COUNTBLANK(I173:S173)=($V$8),\"\",\"v\")","v":""}]
[null,"Bedrijfseconomieplus Totaal Havo 4)",null,null,null,null,9789460204821,19.5,null,null,null,null,null,null,0,null,null,null,null,null,""]
[null,"AdaptiefToets Havo 4)",null,null,null,null,9789460204838,6,null,null,null,null,null,null,0,null,null,null,null,null,""]
[null,"BE Adaptief Havo 4)",null,null,null,null,9789460204869,27.8,null,null,null,null,null,null,0,null,null,null,null,null,""]
[]
[null,"Bedrijfseconomie Vwo",null,null,null,null,null,null,{"$f":"IF(ROWS(I179:I202)-COUNTBLANK(I179:I202)=0,\"\",\"v\")","v":""},null,{"$f":"IF(ROWS(K179:K202)-COUNTBLANK(K179:K202)=0,\"\",\"v\")","v":""},null,null,null,null,null,null,{"$f":"IF(ROWS(R179:R202)-COUNTBLANK(R179:R202)=0,\"\",\"v\")","v":""},null,null,""]
[null,"Financiële Levensloop","x","x",null,1,9789460201608,11.55,null,null,null,null,null,null,{"$f":"H179*I179+0.2*H179*K179","v":0},9789460201615,1.5,null,0,null,{"$f":"IF(COUNTBLANK(I179:S179)=($W$8),\"\",\"v\")","v":""}]
[null,"Financiële Levensloop 5)",null,null,"x",2,9789460201622,11.4,null,null,null,null,null,null,{"$f":"H180*I180+0.2*H180*K180","v":0},9789460201639,1.5,null,{"$f":"Q180*R180","v":0},null,{"$f":"IF(COUNTBLANK(I180:S180)=($W$8),\"\",\"v\")","v":""}]
[null,"Bedrijf Starten Vwo","x","x",null,3,9789460200939,11.4,null,null,null,null,null,null,0,9789460200946,2.15,null,0,null,""]
[null,"Bedrijf Starten Vwo 5)",null,null,"x",4,9789460201646,11.4,null,null,null,null,null,null,0,9789460201653,2.15,null,0,null,""]
[null,"Onderneem-het-zelf Havo/Vwo","x","x","k",2,9789460200236,4.5999999999999996,null,null,null,null,null,null,0,9789460200571,0.85,null,0,null,""]
[null,"Personeelsbeleid en Interne Organisatie Vwo","x","x",null,2,9789460205132,10.4,null,null,null,null,null,null,{"$f":"H184*I184+0.2*H184*K184","v":0},9789460205439,1.1000000000000001,null,{"$f":"Q184*R184","v":0},null,{"$f":"IF(COUNTBLANK(I184:S184)=($W$8),\"\",\"v\")","v":""}]
[null,"Personeelsbeleid en Interne Organisatie Vwo 5)",null,null,"x",3,9789460201684,10.4,null,null,null,null,null,null,0,9789460201691,1.1000000000000001,null,0,null,""]
[null,"Marktverovering Vwo","x","x",null,2,9789460205149,6.7,null,null,null,null,null,null,{"$f":"H186*I186+0.2*H186*K186","v":0},9789460205446,1.1000000000000001,null,{"$f":"Q186*R186","v":0},null,{"$f":"IF(COUNTBLANK(I186:S186)=($W$8),\"\",\"v\")","v":""}]
[null,"Marktverovering Vwo 5)",null,null,"x",3,9789460201660,6.7,null,null,null,null,null,null,0,9789460201677,1.1000000000000001,null,0,null,""]
[null,"Investeren Vwo","SE","SE","SE",2,9789460200601,2.75,null,null,null,null,null,null,0,9789460200649,0.85,null,0,null,""]
[null,"Financiering van de bv en nv Vwo 5)","x","x",null,1,9789460201752,8.25,null,null,null,null,null,null,{"$f":"H189*I189+0.2*H189*K189","v":0},9789460201769,1.1000000000000001,null,{"$f":"Q189*R189","v":0},null,{"$f":"IF(COUNTBLANK(I189:S189)=($W$8),\"\",\"v\")","v":""}]
[null,"Het Jaarverslag Vwo 5)","x","x",null,1,9789460201776,6,null,null,null,null,null,null,0,9789460201783,1.1000000000000001,null,0,null,""]
[null,"Het Resultaat Vwo","x","x",null,3,9789460201554,11.2,null,null,null,null,null,null,{"$f":"H191*I191+0.2*H191*K191","v":0},9789460201561,1.9,null,{"$f":"Q191*R191","v":0},null,{"$f":"IF(COUNTBLANK(I191:S191)=($W$8),\"\",\"v\")","v":""}]
[null,"Keuzelesbrieven Vwo",null,null,null,null,null,null,{"$f":"IF(ROWS(I193:I194)-COUNTBLANK(I193:I194)=0,\"\",\"v\")","v":""},null,{"$f":"IF(ROWS(K193:K194)-COUNTBLANK(K193:K194)=0,\"\",\"v\")","v":""},null,null,null,null,null,null,{"$f":"IF(ROWS(R193:R194)-COUNTBLANK(R193:R194)=0,\"\",\"v\")","v":""},null,null,""]
[null,"Circulair Ondernemen Vwo","k","k","k",2,9789460200618,4.6500000000000004,null,null,null,null,null,null,{"$f":"H193*I193+0.2*H193*K193","v":0},9789460200656,1.1000000000000001,null,0,null,{"$f":"IF(COUNTBLANK(I193:S193)=($W$8),\"\",\"v\")","v":""}]
[null,"Bedrijfseconomie@home Vwo","k","k","k",2,9789460200625,3,null,null,null,null,null,null,0,9789460200663,1.1000000000000001,null,0,null,""]
[]
[null,"Docentenhandleiding Vwo",null,null,null,null,null,null,null,null,{"$f":"IF(ROWS(K197)-COUNTBLANK(K197)=0,\"\",\"v\")","v":""},null,null,null,null,null,null,null,null,null,""]
[null,"Docentenhandleiding BE Vwo 5)",null,null,null,5,9789460201790,17.5,null,null,null,null,null,null,{"$f":"H197*K197","v":0},null,null,null,null,null,{"$f":"IF(COUNTBLANK(K197:R197)=($W$8),\"\",\"v\")","v":""}]
[null,"Bedrijfseconomie Digitaal Vwo",null,null,null,null,null,null,{"$f":"IF(ROWS(I199:I202)-COUNTBLANK(I199:I202)=0,\"\",\"v\")","v":""},null,null,null,null,null,null,null,null,null,null,null,""]
[null,"Bedrijfseconomieplus Vwo 4)",null,null,null,null,9789460205811,4,null,null,null,null,null,null,{"$f":"H199*I199","v":0},null,null,null,null,null,{"$f":"IF(COUNTBLANK(I199:S199)=($V$8),\"\",\"v\")","v":""}]
[null,"Bedrijfseconomieplus Totaal Vwo 4)",null,null,null,null,9789460205828,18,null,null,null,null,null,null,0,null,null,null,null,null,""]
[null,"AdaptiefToets Vwo 4)",null,null,null,null,9789460205835,6,null,null,null,null,null,null,0,null,null,null,null,null,""]
[null,"BE Adaptief Vwo 4)",null,null,null,null,9789460205859,25.3,null,null,null,null,null,null,0,null,null,null,null,null,""]
[]
[null,"Bedrijfseconomie Havo/Vwo",null,null,null,null,null,null,{"$f":"IF(ROWS(I205:I212)-COUNTBLANK(I205:I212)=0,\"\",\"v\")","v":""},null,{"$f":"IF(ROWS(K205:K212)-COUNTBLANK(K205:K212)=0,\"\",\"v\")","v":""},null,null,null,null,null,null,{"$f":"IF(ROWS(R205:R212)-COUNTBLANK(R205:R212)=0,\"\",\"v\")","v":""},null,null,""]
[null,"De Boekhoudmodule Havo/Vwo 5)","k","k","k",5,9789460201806,10.75,null,null,null,null,null,null,{"$f":"H205*I205+0.2*H205*K205","v":0},9789460201813,3.05,null,0,null,{"$f":"IF(COUNTBLANK(I205:S205)=($W$8),\"\",\"v\")","v":""}]
[null,"Het Rekenwonder Havo/Vwo 2)","i","i","i",7,9789460200557,4.2,null,null,null,null,null,null,{"$f":"H206*I206+0.2*H206*K206","v":0},null,null,null,null,null,{"$f":"IF(COUNTBLANK(I206:S206)=($V$8),\"\",\"v\")","v":""}]
[null,"Het Rekenwonder Havo/Vwo 2)","i","i","i",8,9789460201585,4.2,null,null,null,null,null,null,0,null,null,null,null,null,{"$f":"IF(COUNTBLANK(I207:S207)=($V$8),\"\",\"v\")","v":""}]
[null,"Administratiespel Havo/Vwo",null,null,null,4,9789460200908,14.3,null,null,null,null,null,null,{"$f":"H208*K208","v":0},null,null,null,null,null,{"$f":"IF(COUNTBLANK(K208:R208)=($W$8),\"\",\"v\")","v":""}]
[]
[null,"Docentenhandleiding Havo/Vwo",null,null,null,null,null,null,null,null,{"$f":"IF(ROWS(K211:K212)-COUNTBLANK(K211:K212)=0,\"\",\"v\")","v":""},null,null,null,null,null,null,null,null,null,""]
[null,"Docentenhandleiding Rekenwonder H/V",null,null,null,6,9789460201592,6.75,null,null,null,null,null,null,{"$f":"H211*K211","v":0},null,null,null,null,null,{"$f":"IF(COUNTBLANK(K211:R211)=($W$8),\"\",\"v\")","v":""}]
[null,"Docentenhandleiding Boekhoudmodule H/V 5)",null,null,null,5,9789460201820,13.5,null,null,null,null,null,null,0,null,null,null,null,null,{"$f":"IF(COUNTBLANK(K212:R212)=($W$8),\"\",\"v\")","v":""}]
[]
[null,"Voorgaande drukken",null,null,null,null,null,null,{"$f":"IF(ROWS(I215:I224)-COUNTBLANK(I215:I224)=0,\"\",\"v\")","v":""},null,{"$f":"IF(ROWS(K215:K224)-COUNTBLANK(K215:K224)=0,\"\",\"v\")","v":""},null,null,null,null,null,null,{"$f":"IF(ROWS(R215:R224)-COUNTBLANK(R215:R224)=0,\"\",\"v\")","v":""},null,null,{"$f":"IF(COUNTBLANK(I214:S214)=($U$8),\"\",\"v\")","v":""}]
[null,"Havo (beschikbaar tot mei 2024)",null,null,null,null,null,null,{"$f":"IF(ROWS(I216:I218)-COUNTBLANK(I216:I218)=0,\"\",\"v\")","v":""},null,{"$f":"IF(ROWS(K216:K218)-COUNTBLANK(K216:K218)=0,\"\",\"v\")","v":""},null,null,null,null,null,null,{"$f":"IF(ROWS(R216:R218)-COUNTBLANK(R216:R218)=0,\"\",\"v\")","v":""},null,null,""]
[null,"Financiering en Verslaggeving Havo",null,null,null,3,9789460201240,10.35,null,null,null,null,null,null,{"$f":"H216*I216+0.2*H216*K216","v":0},9789460201301,1.2,null,{"$f":"Q216*R216","v":0},null,{"$f":"IF(COUNTBLANK(I216:S216)=($W$8),\"\",\"v\")","v":""}]
[null,"Het Resultaat Havo",null,null,null,3,9789460201257,5.7,null,null,null,null,null,null,{"$f":"H217*I217+0.2*H217*K217","v":0},9789460201530,1.2,null,0,null,""]
[null,"Docentenhandleiding BE Havo",null,null,null,5,9789460201547,16.5,null,null,null,null,null,null,{"$f":"H218*K218","v":0},null,null,null,null,null,{"$f":"IF(COUNTBLANK(K218:R218)=($W$8),\"\",\"v\")","v":""}]
[null,"Vwo (beschikbaar tot mei 2024)",null,null,null,null,null,null,{"$f":"IF(ROWS(I220:I220)-COUNTBLANK(I220:I220)=0,\"\",\"v\")","v":""},null,{"$f":"IF(ROWS(K220:K221)-COUNTBLANK(K220:K221)=0,\"\",\"v\")","v":""},null,null,null,null,null,null,{"$f":"IF(ROWS(R220:R220)-COUNTBLANK(R220:R220)=0,\"\",\"v\")","v":""},null,null,{"$f":"IF(COUNTBLANK(I219:S219)=($U$8),\"\",\"v\")","v":""}]
[null,"Financiering en Verslaggeving Vwo","x","x",null,2,9789460205163,13.9,null,null,null,null,null,null,{"$f":"H220*I220+0.2*H220*K220","v":0},9789460205460,1.95,null,{"$f":"Q220*R220","v":0},null,{"$f":"IF(COUNTBLANK(I220:S220)=($W$8),\"\",\"v\")","v":""}]
[null,"Docentenhandleiding BE Vwo",null,null,null,4,9789460201578,17.5,null,null,null,null,null,null,{"$f":"H221*K221","v":0},null,null,null,null,null,{"$f":"IF(COUNTBLANK(K221:R221)=($W$8),\"\",\"v\")","v":""}]
[null,"Havo/Vwo (beschikbaar tot mei 2024)",null,null,null,null,null,null,{"$f":"IF(ROWS(I223:I223)-COUNTBLANK(I223:I223)=0,\"\",\"v\")","v":""},null,{"$f":"IF(ROWS(K223:K224)-COUNTBLANK(K223:K224)=0,\"\",\"v\")","v":""},null,null,null,null,null,null,{"$f":"IF(ROWS(R223)-COUNTBLANK(R223)=0,\"\",\"v\")","v":""},null,null,{"$f":"IF(COUNTBLANK(I222:S222)=($U$8),\"\",\"v\")","v":""}]
[null,"De Boekhoudmodule Havo/Vwo",null,null,null,4,9789460200960,10.75,null,null,null,null,null,null,{"$f":"H223*I223+0.2*H223*K223","v":0},9789460200977,3.05,null,{"$f":"Q223*R223","v":0},null,{"$f":"IF(COUNTBLANK(I223:S223)=($W$8),\"\",\"v\")","v":""}]
[null,"Docentenhandleiding Boekhoudmodule H/V",null,null,null,4,9789460200984,13.5,null,null,null,null,null,null,{"$f":"H224*K224","v":0},null,null,null,null,null,{"$f":"IF(COUNTBLANK(K224:R224)=($W$8),\"\",\"v\")","v":""}]
[]
[null,"Voor de docent",null,null,null,null,null,null,{"$f":"IF(ROWS(I227:I229)-COUNTBLANK(I227:I229)=0,\"\",\"v\")","v":""},null,{"$f":"IF(ROWS(K227:K229)-COUNTBLANK(K227:K229)=0,\"\",\"v\")","v":""},null,null,null,null,null,null,null,null,null,""]
[null,"Digitaal",null,null,null,null,null,null,null,null,{"$f":"IF(ROWS(K228:K229)-COUNTBLANK(K228:K229)=0,\"\",\"v\")","v":""},null,null,null,null,null,null,null,null,null,""]
[null,"Docentenwebsite bedrijfseconomie 3)",null,null,null,null,null,120,null,null,null,null,null,null,{"$f":"H228*K228","v":0},null,null,null,null,null,{"$f":"IF(COUNTBLANK(I228:S228)=($V$8),\"\",\"v\")","v":""}]
[null,"Docentenpresentatie bedrijfseconomie 3)",null,null,null,null,null,25,null,null,null,null,null,null,0,null,null,null,null,null,{"$f":"IF(COUNTBLANK(I229:S229)=($V$8),\"\",\"v\")","v":""}]
[]
[]
[]
[]
[]
[]
[]
[]
[]
[]
[]
[]
[]
[]
[]
[]
[]
[]
[]
[]
[]
[]
[]
[]
[]
[]
[]
[]
[]
[]
[]
[]
[]
[]
[]
[]
[]
[]
[]
[]
[]
[]
[]
[]
[]
[]
[]
[]
[]
[]
[]
[]
[]
[]
[]
[]
[]
[]
[]
[null,null,null,null,null,null,"Subtotaal",null,null,null,{"$f":"SUBTOTAL(9,O12:O287)","v":0},null,null,null,null,"Subtotaal",null,{"$f":"SUBTOTAL(9,S12:S287)","v":0}]
[null,null,null,null,null,null,"Totale bestelling:",null,{"$f":"SUBTOTAL(9,I12:I287)+SUBTOTAL(9,K12:K287)+SUBTOTAL(9,R12:R287)","v":0},null,null,null,null,null," titels voor een bedrag van",null,null,{"$f":"SUM(K289+R289)","v":0}]
[null,"Bestelgegevens"]
[null,"Naam",null,null,null,null,null,null,null,null,"Afleveradres"]
[null,"Docent / Leerling",null,null,null,null,null,null,null,null,"Adres en nummer"]
[null,"Man / Vrouw",null,null,null,null,null,null,null,null,"Postcode en plaats"]
[]
[null,"School",null,null,null,null,null,null,null,null,"Afwijkend factuuradres? Vul het dan hieronder in.",null,null,null,null,null,null,null,null,null,null,null,null,null,null,null,null,null,null,null,null,null,null,null,null,null,null,"* Exclusief eventuele verzendkosten"]
[null,"Klantnummer (indien bekend)",null,null,null,null,null,null,null,null,"Naam"]
[null,"Datum",null,null,null,null,null,null,null,null,"Adres en nummer"]
[null,"E-mailadres",null,null,null,null,null,null,null,null,"Postcode en plaats"]
[null,"Telefoonnummer",null,null,null,null,null,null,null,null,"Telefoonnummer"]
[]
[null,"Afleverweek"]
[]
[null,"Opmerkingen"]
[]
[]
[null,null,null,null,null,null,null,null,null,null,null,null,null,null,null,null,null,null,null,null,"docent/leerling/overig"]
[null,"Toelichting",null,null,null,null,null,null,null,null,null,null,null,null,null,null,null,null,null,null,"docent"]
[null,"•    De adviesprijzen zijn inclusief 9% btw.",null,null,null,null,null,null,null,null,null,null,null,null,null,null,null,null,null,null,"leerling"]
[null,"•    De adviesprijzen gelden van 1 januari 2024 tot 1 januari 2025. Prijswijzigingen zijn mogelijk i.v.m. aanpassing van het lesmateriaal.",null,null,null,null,null,null,null,null,null,null,null,null,null,null,null,null,null,null,"overig"]
[null,"•    Op al onze aanbiedingen en overeenkomsten zijn de algemene voorwaarden van de LWEO B.V. van toepassing zoals gedeponeerd bij de Kamer van Koophandel"]
[null,"      Brabant onder nummer 78276578."]
[null,"1)   Lesbrieven voor docenten kosten 20% van de adviesprijs, dit geldt alleen bij rechtstreekse bestelling bij de LWEO B.V.",null,null,null,null,null,null,null,null,null,null,null,null,null,null,null,null,null,null,"man/vrouw/anders"]
[null,"2)   8e druk geschikt voor Excel 365; 7e druk geschikt voor Excel 2019/2016",null,null,null,null,null,null,null,null,null,null,null,null,null,null,null,null,null,null,"man"]
[null,"3)   Dit betreft een abonnement. Alleen rechtstreeks te bestellen bij de LWEO B.V. Prijs geldt per schoollocatie per schooljaar.",null,null,null,null,null,null,null,null,null,null,null,null,null,null,null,null,null,null,"vrouw"]
[null,"4)   Prijs geldt per leerling per schooljaar.",null,null,null,null,null,null,null,null,null,null,null,null,null,null,null,null,null,null,"anders"]
[null,"5)   Beschikbaar vanaf mei 2024."]